[Event "Titled Tuesday Blitz May 30 Early 2023"]
[White "Degenbaev, Aziz"]
[Black "Hasangatin, Ramil"]
[WhiteFideId "13802640"]
[BlackFideId "4122160"]
[WhiteElo "2152"]
[BlackElo "2279"]
[Result "0-1"]
[Round "05"]
[TimeControl "180+2"]
[Date "2023.05.30"]
[WhiteClock "0:00:06"]
[BlackClock "0:01:09"]

1. e4 {[%clk 0:03:00]}  d6 {[%clk 0:03:00]} 2. d4 {[%clk 0:03:00]}  Nf6 {[%clk 0:03:00]} 3. Nc3 {[%clk 0:03:01]}  e5 {[%clk 0:03:01]} 4. Nf3 {[%clk 0:03:01]}  Nbd7 {[%clk 0:03:00]} 5. Bc4 {[%clk 0:03:01]}  Be7 {[%clk 0:03:01]} 6. O-O {[%clk 0:03:01]}  O-O {[%clk 0:03:01]} 7. a4 {[%clk 0:02:59]}  c6 {[%clk 0:03:02]} 8. Re1 {[%clk 0:02:57]}  exd4 {[%clk 0:03:02]} 9. Nxd4 {[%clk 0:02:57]}  Ne5 {[%clk 0:03:03]} 10. Be2 {[%clk 0:02:53]}  Re8 {[%clk 0:03:02]} 11. h3 {[%clk 0:02:52]}  Bf8 {[%clk 0:03:02]} 12. Bg5 {[%clk 0:02:33]}  h6 {[%clk 0:03:01]} 13. Bh4 {[%clk 0:02:33]}  Ng6 {[%clk 0:03:01]} 14. Bxf6 {[%clk 0:02:31]}  Qxf6 {[%clk 0:03:02]} 15. a5 {[%clk 0:02:28]}  Bd7 {[%clk 0:02:57]} 16. Bc4 {[%clk 0:02:15]}  b5 {[%clk 0:02:56]} 17. axb6 {[%clk 0:02:12]}  axb6 {[%clk 0:02:57]} 18. Qf3 {[%clk 0:02:05]}  Qxf3 {[%clk 0:02:51]} 19. Nxf3 {[%clk 0:02:05]}  b5 {[%clk 0:02:48]} 20. Rxa8 {[%clk 0:01:56]}  Rxa8 {[%clk 0:02:49]} 21. Bb3 {[%clk 0:01:57]}  Ne5 {[%clk 0:02:45]} 22. Nd2 {[%clk 0:01:42]}  Be7 {[%clk 0:02:33]} 23. f4 {[%clk 0:01:41]}  Ng6 {[%clk 0:02:33]} 24. Rf1 {[%clk 0:01:28]}  Bf6 {[%clk 0:02:33]} 25. e5 {[%clk 0:00:42]}  Be7 {[%clk 0:02:21]} 26. Nde4 {[%clk 0:00:40]}  d5 {[%clk 0:02:18]} 27. Nd2 {[%clk 0:00:37]}  Bc5+ {[%clk 0:02:15]} 28. Kh2 {[%clk 0:00:37]}  Be3 {[%clk 0:02:16]} 29. f5 {[%clk 0:00:32]}  Nxe5 {[%clk 0:02:14]} 30. Nf3 {[%clk 0:00:32]}  Nxf3+ {[%clk 0:02:07]} 31. Rxf3 {[%clk 0:00:32]}  Bd4 {[%clk 0:02:08]} 32. Rd3 {[%clk 0:00:30]}  Be5+ {[%clk 0:02:07]} 33. g3 {[%clk 0:00:31]}  Kf8 {[%clk 0:02:03]} 34. Rf3 {[%clk 0:00:30]}  f6 {[%clk 0:02:03]} 35. Kg2 {[%clk 0:00:30]}  Ke7 {[%clk 0:02:03]} 36. g4 {[%clk 0:00:26]}  Kd6 {[%clk 0:02:02]} 37. Rd3 {[%clk 0:00:26]}  Ra1 {[%clk 0:01:54]} 38. Ne4+ {[%clk 0:00:25]}  Kc7 {[%clk 0:01:53]} 39. Nc5 {[%clk 0:00:25]}  Bxb2 {[%clk 0:01:47]} 40. c4 {[%clk 0:00:18]}  bxc4 {[%clk 0:01:43]} 41. Bxc4 {[%clk 0:00:18]}  Be5 {[%clk 0:01:38]} 42. Rb3 {[%clk 0:00:13]}  Bc8 {[%clk 0:01:34]} 43. Bd3 {[%clk 0:00:09]}  Kd6 {[%clk 0:01:33]} 44. Nb7+ {[%clk 0:00:07]}  Bxb7 {[%clk 0:01:29]} 45. Rxb7 {[%clk 0:00:07]}  Ra2+ {[%clk 0:01:28]} 46. Kf3 {[%clk 0:00:08]}  c5 {[%clk 0:01:28]} 47. Rxg7 {[%clk 0:00:07]}  c4 {[%clk 0:01:28]} 48. Be2 {[%clk 0:00:05]}  Ra3+ {[%clk 0:01:27]} 49. Kf2 {[%clk 0:00:05]}  Rxh3 {[%clk 0:01:27]} 50. Rg6 {[%clk 0:00:05]}  Kc5 {[%clk 0:01:25]} 51. Bd1 {[%clk 0:00:05]}  d4 {[%clk 0:01:24]} 52. Rg8 {[%clk 0:00:04]}  d3 {[%clk 0:01:24]} 53. Rc8+ {[%clk 0:00:04]}  Kd4 {[%clk 0:01:24]} 54. Bf3 {[%clk 0:00:03]}  Rh2+ {[%clk 0:01:19]} 55. Kg1 {[%clk 0:00:03]}  Rc2 {[%clk 0:01:15]} 56. g5 {[%clk 0:00:04]}  hxg5 {[%clk 0:01:14]} 57. Rd8+ {[%clk 0:00:04]}  Ke3 {[%clk 0:01:14]} 58. Bd5 {[%clk 0:00:04]}  c3 {[%clk 0:01:14]} 59. Bc4 {[%clk 0:00:04]}  Rd2 {[%clk 0:01:14]} 60. Bb3 {[%clk 0:00:02]}  c2 {[%clk 0:01:14]} 61. Bxc2 {[%clk 0:00:03]}  dxc2 {[%clk 0:01:14]} 62. Rc8 {[%clk 0:00:04]}  Rd1+ {[%clk 0:01:14]} 63. Kg2 {[%clk 0:00:04]}  c1=Q {[%clk 0:01:15]} 64. Rxc1 {[%clk 0:00:05]}  Rxc1 {[%clk 0:01:15]} 65. Kh3 {[%clk 0:00:05]}  Ke4 {[%clk 0:01:10]} 66. Kg4 {[%clk 0:00:05]}  Rg1+ {[%clk 0:01:11]} 67. Kh3 {[%clk 0:00:04]}  Rg3+ {[%clk 0:01:10]} 68. Kh2 {[%clk 0:00:05]}  Kf3 {[%clk 0:01:09]} 69. Kh1 {[%clk 0:00:05]}  Kf2 {[%clk 0:01:09]} 70. Kh2 {[%clk 0:00:05]}  Rf3+ {[%clk 0:01:09]} 71. Kh1 {[%clk 0:00:06]}  Rh3# {[%clk 0:01:09]} 0-1


[Site "https://www.chess.com"]

[Event "Titled Tuesday Blitz May 30 Early 2023"]
[White "Lymar, Vladislav"]
[Black "Jaracz, Pawel"]
[WhiteFideId "14162180"]
[BlackFideId "1102222"]
[WhiteElo "2234"]
[BlackElo "2438"]
[Result "0-1"]
[Round "05"]
[TimeControl "180+2"]
[Date "2023.05.30"]
[WhiteClock "0:00:00"]
[BlackClock "0:00:32"]

1. e4 {[%clk 0:02:58]}  e5 {[%clk 0:02:59]} 2. Nf3 {[%clk 0:02:58]}  Nc6 {[%clk 0:03:00]} 3. Nc3 {[%clk 0:02:58]}  Nf6 {[%clk 0:02:59]} 4. a3 {[%clk 0:02:58]}  d6 {[%clk 0:02:58]} 5. d4 {[%clk 0:02:58]}  Bd7 {[%clk 0:02:58]} 6. d5 {[%clk 0:02:57]}  Ne7 {[%clk 0:02:58]} 7. Bc4 {[%clk 0:02:55]}  Ng6 {[%clk 0:02:58]} 8. h4 {[%clk 0:02:44]}  Bg4 {[%clk 0:02:56]} 9. Bb5+ {[%clk 0:02:37]}  Bd7 {[%clk 0:02:46]} 10. h5 {[%clk 0:02:33]}  Ne7 {[%clk 0:02:46]} 11. Be2 {[%clk 0:02:12]}  h6 {[%clk 0:02:40]} 12. Nh4 {[%clk 0:02:07]}  c6 {[%clk 0:02:40]} 13. Be3 {[%clk 0:02:00]}  cxd5 {[%clk 0:02:37]} 14. exd5 {[%clk 0:02:01]}  Rc8 {[%clk 0:02:34]} 15. O-O {[%clk 0:01:41]}  Rxc3 {[%clk 0:02:29]} 16. bxc3 {[%clk 0:01:40]}  Nexd5 {[%clk 0:02:30]} 17. Qd2 {[%clk 0:01:29]}  Be7 {[%clk 0:02:26]} 18. c4 {[%clk 0:01:18]}  Nxe3 {[%clk 0:02:25]} 19. Qxe3 {[%clk 0:01:10]}  O-O {[%clk 0:02:15]} 20. Qxa7 {[%clk 0:01:07]}  Ng4 {[%clk 0:01:46]} 21. Nf3 {[%clk 0:00:59]}  Bc6 {[%clk 0:01:42]} 22. Rfd1 {[%clk 0:00:54]}  Qc8 {[%clk 0:01:36]} 23. Rab1 {[%clk 0:00:43]}  Qf5 {[%clk 0:01:34]} 24. Rxb7 {[%clk 0:00:39]}  Bxb7 {[%clk 0:01:28]} 25. Qxb7 {[%clk 0:00:40]}  Qxc2 {[%clk 0:01:22]} 26. Nd4 {[%clk 0:00:39]}  exd4 {[%clk 0:01:19]} 27. Bxg4 {[%clk 0:00:39]}  Bf6 {[%clk 0:01:13]} 28. Qd5 {[%clk 0:00:37]}  Be5 {[%clk 0:01:07]} 29. Bf3 {[%clk 0:00:12]}  Rb8 {[%clk 0:01:03]} 30. a4 {[%clk 0:00:12]}  Kf8 {[%clk 0:00:42]} 31. a5 {[%clk 0:00:11]}  Rb1 {[%clk 0:00:42]} 32. Qa8+ {[%clk 0:00:09]}  Ke7 {[%clk 0:00:42]} 33. Rf1 {[%clk 0:00:06]}  Rxf1+ {[%clk 0:00:41]} 34. Kxf1 {[%clk 0:00:07]}  Qb1+ {[%clk 0:00:40]} 35. Ke2 {[%clk 0:00:07]}  Qc2+ {[%clk 0:00:38]} 36. Ke1 {[%clk 0:00:06]}  d3 {[%clk 0:00:35]} 37. Qb7+ {[%clk 0:00:04]}  Kf6 {[%clk 0:00:35]} 38. Qe4 {[%clk 0:00:03]}  Bc3+ {[%clk 0:00:33]} 39. Kf1 {[%clk 0:00:00]}  Qc1+ {[%clk 0:00:32]} 0-1


[Site "https://www.chess.com"]

[Event "Titled Tuesday Blitz May 30 Early 2023"]
[White "Halkias, Stelios"]
[Black "Dudzinski, Pawel"]
[WhiteFideId "4201809"]
[BlackFideId "1117890"]
[WhiteElo "2451"]
[BlackElo "2099"]
[Result "1-0"]
[Round "05"]
[TimeControl "180+2"]
[Date "2023.05.30"]
[WhiteClock "0:00:29"]
[BlackClock "0:00:01"]

1. d4 {[%clk 0:03:00]}  d5 {[%clk 0:01:48]} 2. c4 {[%clk 0:02:59]}  c6 {[%clk 0:01:49]} 3. Nf3 {[%clk 0:02:57]}  f5 {[%clk 0:01:49]} 4. g3 {[%clk 0:02:54]}  e6 {[%clk 0:01:49]} 5. Bg2 {[%clk 0:02:54]}  Nf6 {[%clk 0:01:50]} 6. b3 {[%clk 0:02:53]}  Be7 {[%clk 0:01:51]} 7. O-O {[%clk 0:02:53]}  O-O {[%clk 0:01:51]} 8. Ba3 {[%clk 0:02:53]}  Bd7 {[%clk 0:01:52]} 9. Bxe7 {[%clk 0:02:52]}  Qxe7 {[%clk 0:01:53]} 10. Qc1 {[%clk 0:02:53]}  Be8 {[%clk 0:01:53]} 11. Qa3 {[%clk 0:02:53]}  Qxa3 {[%clk 0:01:49]} 12. Nxa3 {[%clk 0:02:52]}  Bh5 {[%clk 0:01:49]} 13. Nc2 {[%clk 0:02:48]}  Bxf3 {[%clk 0:01:45]} 14. exf3 {[%clk 0:02:40]}  Kf7 {[%clk 0:01:41]} 15. Rfe1 {[%clk 0:02:40]}  Na6 {[%clk 0:01:38]} 16. Bf1 {[%clk 0:02:33]}  Nc7 {[%clk 0:01:38]} 17. c5 {[%clk 0:02:27]}  b6 {[%clk 0:01:26]} 18. b4 {[%clk 0:02:25]}  Rfb8 {[%clk 0:01:26]} 19. Rab1 {[%clk 0:02:20]}  a5 {[%clk 0:00:49]} 20. cxb6 {[%clk 0:02:11]}  Rxb6 {[%clk 0:00:48]} 21. bxa5 {[%clk 0:02:11]}  Rxb1 {[%clk 0:00:49]} 22. Rxb1 {[%clk 0:02:11]}  Rxa5 {[%clk 0:00:50]} 23. Rb7 {[%clk 0:02:11]}  Ne8 {[%clk 0:00:50]} 24. Nb4 {[%clk 0:02:09]}  Kf6 {[%clk 0:00:31]} 25. Nxc6 {[%clk 0:02:02]}  Rxa2 {[%clk 0:00:29]} 26. Ne5 {[%clk 0:02:02]}  Rd2 {[%clk 0:00:14]} 27. Bd3 {[%clk 0:01:39]}  g5 {[%clk 0:00:13]} 28. Kg2 {[%clk 0:01:32]}  h5 {[%clk 0:00:11]} 29. h4 {[%clk 0:01:25]}  gxh4 {[%clk 0:00:11]} 30. gxh4 {[%clk 0:01:25]}  Rd1 {[%clk 0:00:07]} 31. Kh2 {[%clk 0:01:17]}  Rc1 {[%clk 0:00:07]} 32. f4 {[%clk 0:01:08]}  Nd6 {[%clk 0:00:08]} 33. Rb8 {[%clk 0:01:05]}  Ne4 {[%clk 0:00:07]} 34. Rf8+ {[%clk 0:01:03]}  Ke7 {[%clk 0:00:05]} 35. Rf7+ {[%clk 0:01:02]}  Kd8 {[%clk 0:00:06]} 36. f3 {[%clk 0:00:51]}  Nf2 {[%clk 0:00:04]} 37. Be2 {[%clk 0:00:48]}  Rc2 {[%clk 0:00:04]} 38. Bf1 {[%clk 0:00:39]}  Nd3+ {[%clk 0:00:05]} 39. Kg3 {[%clk 0:00:38]}  Nxe5 {[%clk 0:00:05]} 40. fxe5 {[%clk 0:00:39]}  Rd2 {[%clk 0:00:05]} 41. Kf4 {[%clk 0:00:38]}  Rxd4+ {[%clk 0:00:05]} 42. Kg5 {[%clk 0:00:39]}  Rd1 {[%clk 0:00:05]} 43. Be2 {[%clk 0:00:37]}  Re1 {[%clk 0:00:06]} 44. Bd3 {[%clk 0:00:37]}  Rxe5 {[%clk 0:00:06]} 45. f4 {[%clk 0:00:32]}  Re3 {[%clk 0:00:06]} 46. Bc2 {[%clk 0:00:33]}  e5 {[%clk 0:00:07]} 47. fxe5 {[%clk 0:00:32]}  Rxe5 {[%clk 0:00:07]} 48. Bxf5 {[%clk 0:00:31]}  Ne6+ {[%clk 0:00:07]} 49. Kf6 {[%clk 0:00:31]}  Rxf5+ {[%clk 0:00:06]} 50. Kxf5 {[%clk 0:00:31]}  Nc7 {[%clk 0:00:05]} 51. Ke5 {[%clk 0:00:31]}  Kc8 {[%clk 0:00:05]} 52. Rh7 {[%clk 0:00:31]}  Kd8 {[%clk 0:00:05]} 53. Rxh5 {[%clk 0:00:30]}  Kd7 {[%clk 0:00:04]} 54. Rh7+ {[%clk 0:00:30]}  Kc6 {[%clk 0:00:05]} 55. h5 {[%clk 0:00:31]}  Nb5 {[%clk 0:00:04]} 56. h6 {[%clk 0:00:30]}  Na3 {[%clk 0:00:05]} 57. Re7 {[%clk 0:00:29]}  Nc4+ {[%clk 0:00:06]} 58. Kd4 {[%clk 0:00:29]}  Ne5 {[%clk 0:00:01]} 59. Rxe5 {[%clk 0:00:29]} 1-0


[Site "https://www.chess.com"]

[Event "Titled Tuesday Blitz May 30 Early 2023"]
[White "Agibileg, Uurtsaikh"]
[Black "Zhigalko, Sergei"]
[WhiteFideId "4901606"]
[BlackFideId "13502956"]
[WhiteElo "2353"]
[BlackElo "2626"]
[Result "1-0"]
[Round "05"]
[TimeControl "180+2"]
[Date "2023.05.30"]
[WhiteClock "0:00:44"]
[BlackClock "0:00:00"]

1. d4 {[%clk 0:03:00]}  Nf6 {[%clk 0:02:56]} 2. c4 {[%clk 0:03:01]}  e6 {[%clk 0:02:56]} 3. Nc3 {[%clk 0:03:01]}  Bb4 {[%clk 0:02:56]} 4. f3 {[%clk 0:03:01]}  d5 {[%clk 0:02:55]} 5. a3 {[%clk 0:03:02]}  Be7 {[%clk 0:02:54]} 6. e4 {[%clk 0:02:59]}  dxe4 {[%clk 0:02:55]} 7. fxe4 {[%clk 0:02:59]}  e5 {[%clk 0:02:55]} 8. d5 {[%clk 0:02:59]}  O-O {[%clk 0:02:54]} 9. Nf3 {[%clk 0:02:55]}  Bg4 {[%clk 0:02:52]} 10. Be2 {[%clk 0:02:54]}  Nbd7 {[%clk 0:02:50]} 11. O-O {[%clk 0:02:49]}  a5 {[%clk 0:02:49]} 12. Be3 {[%clk 0:02:48]}  Ne8 {[%clk 0:02:30]} 13. Kh1 {[%clk 0:02:45]}  Bxf3 {[%clk 0:02:27]} 14. Rxf3 {[%clk 0:02:38]}  Bc5 {[%clk 0:02:27]} 15. Bd2 {[%clk 0:02:20]}  Nd6 {[%clk 0:02:22]} 16. Rb1 {[%clk 0:02:16]}  Bd4 {[%clk 0:02:20]} 17. Bd3 {[%clk 0:02:16]}  Nc5 {[%clk 0:02:18]} 18. Qe2 {[%clk 0:02:10]}  a4 {[%clk 0:02:09]} 19. Bc2 {[%clk 0:01:55]}  Qd7 {[%clk 0:01:49]} 20. Rg3 {[%clk 0:01:55]}  f6 {[%clk 0:01:38]} 21. Bh6 {[%clk 0:01:54]}  Rf7 {[%clk 0:01:36]} 22. Rf1 {[%clk 0:01:47]}  Kh8 {[%clk 0:01:21]} 23. Bd2 {[%clk 0:01:38]}  Raf8 {[%clk 0:01:18]} 24. Qh5 {[%clk 0:01:35]}  Nxc4 {[%clk 0:00:42]} 25. Bc1 {[%clk 0:01:28]}  Nd6 {[%clk 0:00:35]} 26. Rh3 {[%clk 0:01:25]}  g6 {[%clk 0:00:30]} 27. Qxg6 {[%clk 0:01:25]}  Qxh3 {[%clk 0:00:27]} 28. Qxf7 {[%clk 0:01:24]}  Qxg2+ {[%clk 0:00:13]} 29. Kxg2 {[%clk 0:01:25]}  Rxf7 {[%clk 0:00:13]} 30. Ne2 {[%clk 0:01:25]}  Ncxe4 {[%clk 0:00:10]} 31. Nxd4 {[%clk 0:01:23]}  exd4 {[%clk 0:00:11]} 32. Rd1 {[%clk 0:01:19]}  Rg7+ {[%clk 0:00:04]} 33. Kf3 {[%clk 0:01:17]}  Ng5+ {[%clk 0:00:04]} 34. Kf2 {[%clk 0:01:11]}  Nh3+ {[%clk 0:00:04]} 35. Kf3 {[%clk 0:01:11]}  Ng5+ {[%clk 0:00:04]} 36. Ke2 {[%clk 0:01:06]}  Re7+ {[%clk 0:00:04]} 37. Kf1 {[%clk 0:01:07]}  Nf3 {[%clk 0:00:04]} 38. Kf2 {[%clk 0:01:03]}  Nxh2 {[%clk 0:00:02]} 39. Rxd4 {[%clk 0:01:03]}  f5 {[%clk 0:00:03]} 40. Kg3 {[%clk 0:00:56]}  Nf1+ {[%clk 0:00:02]} 41. Kf4 {[%clk 0:00:55]}  Rg7 {[%clk 0:00:02]} 42. Bxf5 {[%clk 0:00:53]}  Rf7 {[%clk 0:00:02]} 43. Ke5 {[%clk 0:00:53]}  Rxf5+ {[%clk 0:00:02]} 44. Ke6 {[%clk 0:00:54]}  Ng3 {[%clk 0:00:02]} 45. Bf4 {[%clk 0:00:53]}  Nh5 {[%clk 0:00:02]} 46. Be5+ {[%clk 0:00:53]}  Kg8 {[%clk 0:00:02]} 47. Rg4+ {[%clk 0:00:52]}  Kf8 {[%clk 0:00:02]} 48. Bxd6+ {[%clk 0:00:53]}  cxd6 {[%clk 0:00:03]} 49. Kxf5 {[%clk 0:00:53]}  Kf7 {[%clk 0:00:03]} 50. Rxa4 {[%clk 0:00:52]}  Nf6 {[%clk 0:00:03]} 51. Ra7 {[%clk 0:00:51]}  Nxd5 {[%clk 0:00:02]} 52. Rxb7+ {[%clk 0:00:52]}  Ne7+ {[%clk 0:00:03]} 53. Kg5 {[%clk 0:00:49]}  Ke6 {[%clk 0:00:04]} 54. a4 {[%clk 0:00:47]}  Nc6 {[%clk 0:00:04]} 55. b4 {[%clk 0:00:45]}  d5 {[%clk 0:00:04]} 56. a5 {[%clk 0:00:44]}  Nxa5 {[%clk 0:00:00]} 57. bxa5 {[%clk 0:00:44]} 1-0


[Site "https://www.chess.com"]

[Event "Titled Tuesday Blitz May 30 Early 2023"]
[White "Janik, Igor"]
[Black "iHateNAJDORF"]
[WhiteFideId "1159259"]
[WhiteElo "2484"]
[BlackElo "2602"]
[Result "0-1"]
[Round "05"]
[TimeControl "180+2"]
[Date "2023.05.30"]
[WhiteClock "0:00:02"]
[BlackClock "0:00:05"]

1. d4 {[%clk 0:03:00]}  Nf6 {[%clk 0:02:59]} 2. c4 {[%clk 0:02:59]}  g6 {[%clk 0:02:57]} 3. g3 {[%clk 0:02:59]}  Bg7 {[%clk 0:02:58]} 4. Bg2 {[%clk 0:03:00]}  O-O {[%clk 0:02:59]} 5. Nf3 {[%clk 0:03:00]}  d6 {[%clk 0:02:59]} 6. O-O {[%clk 0:03:01]}  Nc6 {[%clk 0:03:00]} 7. Nc3 {[%clk 0:03:01]}  Bg4 {[%clk 0:02:59]} 8. Ne1 {[%clk 0:03:01]}  Qd7 {[%clk 0:02:30]} 9. f3 {[%clk 0:03:00]}  Bh3 {[%clk 0:02:28]} 10. Bxh3 {[%clk 0:02:59]}  Qxh3 {[%clk 0:02:28]} 11. Nd3 {[%clk 0:02:59]}  Nd7 {[%clk 0:02:23]} 12. Nf2 {[%clk 0:02:50]}  Qh5 {[%clk 0:02:18]} 13. e3 {[%clk 0:02:37]}  e6 {[%clk 0:02:10]} 14. Bd2 {[%clk 0:02:25]}  Nb6 {[%clk 0:02:02]} 15. b3 {[%clk 0:02:23]}  d5 {[%clk 0:01:58]} 16. c5 {[%clk 0:02:21]}  Nd7 {[%clk 0:01:56]} 17. f4 {[%clk 0:02:06]}  Qxd1 {[%clk 0:01:49]} 18. Rfxd1 {[%clk 0:02:06]}  b6 {[%clk 0:01:50]} 19. cxb6 {[%clk 0:01:58]}  cxb6 {[%clk 0:01:51]} 20. Nd3 {[%clk 0:01:57]}  Rfc8 {[%clk 0:01:47]} 21. Rac1 {[%clk 0:01:57]}  Bf8 {[%clk 0:01:42]} 22. Rc2 {[%clk 0:01:31]}  Nb4 {[%clk 0:01:36]} 23. Nxb4 {[%clk 0:01:31]}  Bxb4 {[%clk 0:01:37]} 24. Rdc1 {[%clk 0:01:25]}  Ba3 {[%clk 0:01:34]} 25. Rb1 {[%clk 0:01:25]}  Bb4 {[%clk 0:01:30]} 26. Rbc1 {[%clk 0:01:25]}  Ba3 {[%clk 0:01:30]} 27. Rb1 {[%clk 0:01:20]}  Rc7 {[%clk 0:01:17]} 28. b4 {[%clk 0:01:11]}  Rc4 {[%clk 0:01:16]} 29. b5 {[%clk 0:01:06]}  Rac8 {[%clk 0:01:15]} 30. Rb3 {[%clk 0:00:48]}  Bb4 {[%clk 0:01:12]} 31. Kf2 {[%clk 0:00:48]}  Nf6 {[%clk 0:01:09]} 32. Ke2 {[%clk 0:00:47]}  Ne4 {[%clk 0:01:03]} 33. Kd3 {[%clk 0:00:40]}  Nf2+ {[%clk 0:01:00]} 34. Ke2 {[%clk 0:00:40]}  Ne4 {[%clk 0:01:01]} 35. Kd3 {[%clk 0:00:40]}  Ba5 {[%clk 0:00:59]} 36. Be1 {[%clk 0:00:36]}  f5 {[%clk 0:00:54]} 37. h3 {[%clk 0:00:21]}  Kf7 {[%clk 0:00:50]} 38. a3 {[%clk 0:00:20]}  h6 {[%clk 0:00:48]} 39. Rc1 {[%clk 0:00:19]}  g5 {[%clk 0:00:42]} 40. Rc2 {[%clk 0:00:18]}  g4 {[%clk 0:00:39]} 41. h4 {[%clk 0:00:17]}  Kg6 {[%clk 0:00:23]} 42. Rc1 {[%clk 0:00:17]}  Kh5 {[%clk 0:00:18]} 43. Rc2 {[%clk 0:00:17]}  Bxc3 {[%clk 0:00:18]} 44. Bxc3 {[%clk 0:00:12]}  Nxg3 {[%clk 0:00:17]} 45. Ra2 {[%clk 0:00:09]}  Ne4 {[%clk 0:00:14]} 46. Bb4 {[%clk 0:00:10]}  g3 {[%clk 0:00:13]} 47. Rb1 {[%clk 0:00:09]}  Kg4 {[%clk 0:00:11]} 48. Rg1 {[%clk 0:00:07]}  Kf3 {[%clk 0:00:10]} 49. Rf1+ {[%clk 0:00:07]}  Nf2+ {[%clk 0:00:08]} 50. Kd2 {[%clk 0:00:05]}  g2 {[%clk 0:00:07]} 51. Re1 {[%clk 0:00:05]}  Ne4+ {[%clk 0:00:05]} 52. Kd3 {[%clk 0:00:02]}  Rc3+ {[%clk 0:00:05]} 0-1


[Site "https://www.chess.com"]

[Event "Titled Tuesday Blitz May 30 Early 2023"]
[White "Bartel, Michal"]
[Black "Bryakin, Mikhail"]
[WhiteFideId "1119257"]
[BlackFideId "4165314"]
[WhiteElo "2282"]
[BlackElo "2467"]
[Result "0-1"]
[Round "05"]
[TimeControl "180+2"]
[Date "2023.05.30"]
[WhiteClock "0:00:00"]
[BlackClock "0:00:07"]

1. e4 {[%clk 0:02:56]}  Nf6 {[%clk 0:02:54]} 2. Nc3 {[%clk 0:02:52]}  d5 {[%clk 0:02:52]} 3. exd5 {[%clk 0:02:52]}  Nxd5 {[%clk 0:02:52]} 4. g3 {[%clk 0:02:48]}  Nxc3 {[%clk 0:02:50]} 5. bxc3 {[%clk 0:02:48]}  Qd5 {[%clk 0:02:51]} 6. Qf3 {[%clk 0:02:46]}  Qxf3 {[%clk 0:02:51]} 7. Nxf3 {[%clk 0:02:47]}  g6 {[%clk 0:02:50]} 8. Bg2 {[%clk 0:02:46]}  Bg7 {[%clk 0:02:51]} 9. Rb1 {[%clk 0:02:47]}  c6 {[%clk 0:02:49]} 10. Ba3 {[%clk 0:02:43]}  Nd7 {[%clk 0:02:47]} 11. O-O {[%clk 0:02:41]}  Nb6 {[%clk 0:02:45]} 12. Rfe1 {[%clk 0:02:38]}  e6 {[%clk 0:02:41]} 13. Nd4 {[%clk 0:02:33]}  Bd7 {[%clk 0:02:39]} 14. Nb3 {[%clk 0:02:31]}  Nc4 {[%clk 0:02:37]} 15. Bc1 {[%clk 0:02:31]}  b6 {[%clk 0:02:34]} 16. d3 {[%clk 0:02:28]}  Nd6 {[%clk 0:02:35]} 17. Bd2 {[%clk 0:02:15]}  Nb5 {[%clk 0:02:30]} 18. d4 {[%clk 0:02:08]}  Rc8 {[%clk 0:02:27]} 19. a4 {[%clk 0:02:04]}  Nd6 {[%clk 0:02:26]} 20. Bf4 {[%clk 0:02:01]}  Nf5 {[%clk 0:02:14]} 21. a5 {[%clk 0:01:59]}  O-O {[%clk 0:02:14]} 22. axb6 {[%clk 0:01:57]}  axb6 {[%clk 0:02:14]} 23. Red1 {[%clk 0:01:46]}  Rfd8 {[%clk 0:02:14]} 24. Bg5 {[%clk 0:01:39]}  f6 {[%clk 0:02:12]} 25. Bf4 {[%clk 0:01:38]}  Bh6 {[%clk 0:02:13]} 26. Bxh6 {[%clk 0:01:37]}  Nxh6 {[%clk 0:02:14]} 27. Nd2 {[%clk 0:01:36]}  Rb8 {[%clk 0:02:08]} 28. Bh3 {[%clk 0:01:31]}  Kf7 {[%clk 0:02:07]} 29. Ne4 {[%clk 0:01:31]}  Ke7 {[%clk 0:02:05]} 30. Re1 {[%clk 0:01:30]}  Nf7 {[%clk 0:02:04]} 31. Nd2 {[%clk 0:01:25]}  e5 {[%clk 0:01:54]} 32. Bg2 {[%clk 0:01:19]}  Kf8 {[%clk 0:01:51]} 33. Nc4 {[%clk 0:01:17]}  b5 {[%clk 0:01:49]} 34. Na5 {[%clk 0:01:12]}  Rdc8 {[%clk 0:01:49]} 35. Nb3 {[%clk 0:01:11]}  Bf5 {[%clk 0:01:41]} 36. Re2 {[%clk 0:01:06]}  b4 {[%clk 0:01:42]} 37. cxb4 {[%clk 0:00:39]}  Rxb4 {[%clk 0:01:40]} 38. Rd1 {[%clk 0:00:36]}  Bg4 {[%clk 0:01:32]} 39. f3 {[%clk 0:00:35]}  Bf5 {[%clk 0:01:32]} 40. g4 {[%clk 0:00:28]}  Be6 {[%clk 0:01:31]} 41. Nc5 {[%clk 0:00:28]}  Bd5 {[%clk 0:01:30]} 42. c3 {[%clk 0:00:21]}  Rc4 {[%clk 0:01:21]} 43. Re3 {[%clk 0:00:20]}  exd4 {[%clk 0:01:20]} 44. cxd4 {[%clk 0:00:21]}  Kg7 {[%clk 0:01:15]} 45. f4 {[%clk 0:00:21]}  Rd8 {[%clk 0:01:05]} 46. Nb7 {[%clk 0:00:18]}  Rb8 {[%clk 0:00:56]} 47. Nc5 {[%clk 0:00:18]}  Bxg2 {[%clk 0:00:51]} 48. Kxg2 {[%clk 0:00:19]}  Rb2+ {[%clk 0:00:52]} 49. Kg3 {[%clk 0:00:20]}  Rcc2 {[%clk 0:00:52]} 50. Ne6+ {[%clk 0:00:17]}  Kh6 {[%clk 0:00:48]} 51. h4 {[%clk 0:00:17]}  Rg2+ {[%clk 0:00:48]} 52. Kf3 {[%clk 0:00:17]}  Rbf2+ {[%clk 0:00:47]} 53. Ke4 {[%clk 0:00:18]}  Rxg4 {[%clk 0:00:44]} 54. Rc1 {[%clk 0:00:17]}  Rxh4 {[%clk 0:00:32]} 55. Rxc6 {[%clk 0:00:16]}  Ng5+ {[%clk 0:00:33]} 56. Kd3 {[%clk 0:00:15]}  Nxe6 {[%clk 0:00:32]} 57. Rcxe6 {[%clk 0:00:15]}  Rfxf4 {[%clk 0:00:31]} 58. Rd6 {[%clk 0:00:15]}  Kg5 {[%clk 0:00:29]} 59. Rg3+ {[%clk 0:00:15]}  Rhg4 {[%clk 0:00:29]} 60. Re3 {[%clk 0:00:15]}  h5 {[%clk 0:00:29]} 61. d5 {[%clk 0:00:16]}  Rd4+ {[%clk 0:00:28]} 62. Kc3 {[%clk 0:00:16]}  Rd1 {[%clk 0:00:28]} 63. Rd8 {[%clk 0:00:16]}  Rgd4 {[%clk 0:00:26]} 64. Rg3+ {[%clk 0:00:14]}  Kf5 {[%clk 0:00:25]} 65. Rf3+ {[%clk 0:00:14]}  Kg5 {[%clk 0:00:21]} 66. Rg3+ {[%clk 0:00:14]}  Kh6 {[%clk 0:00:19]} 67. Rg8 {[%clk 0:00:14]}  Rg4 {[%clk 0:00:17]} 68. Rf3 {[%clk 0:00:14]}  Rxd5 {[%clk 0:00:13]} 69. Rxf6 {[%clk 0:00:14]}  Rd7 {[%clk 0:00:11]} 70. Rff8 {[%clk 0:00:14]}  Kg5 {[%clk 0:00:11]} 71. Re8 {[%clk 0:00:14]}  Kh4 {[%clk 0:00:11]} 72. Re3 {[%clk 0:00:13]}  g5 {[%clk 0:00:10]} 73. Re6 {[%clk 0:00:13]}  Rg1 {[%clk 0:00:09]} 74. Rh6 {[%clk 0:00:13]}  Rc1+ {[%clk 0:00:08]} 75. Kb2 {[%clk 0:00:13]}  Rc5 {[%clk 0:00:08]} 76. Rb6 {[%clk 0:00:12]}  g4 {[%clk 0:00:08]} 77. Rh8 {[%clk 0:00:13]}  g3 {[%clk 0:00:08]} 78. Rb4+ {[%clk 0:00:13]}  Kh3 {[%clk 0:00:08]} 79. Rg8 {[%clk 0:00:14]}  h4 {[%clk 0:00:08]} 80. Rh8 {[%clk 0:00:14]}  Kg2 {[%clk 0:00:05]} 81. Rhxh4 {[%clk 0:00:14]}  Rd2+ {[%clk 0:00:05]} 82. Kb3 {[%clk 0:00:14]}  Rd3+ {[%clk 0:00:06]} 83. Kb2 {[%clk 0:00:14]}  Rd2+ {[%clk 0:00:06]} 84. Kb3 {[%clk 0:00:14]}  Rf2 {[%clk 0:00:06]} 85. Rhg4 {[%clk 0:00:14]}  Rf3+ {[%clk 0:00:07]} 86. Kb2 {[%clk 0:00:14]}  Kf2 {[%clk 0:00:07]} 87. Rbd4 {[%clk 0:00:14]}  Re5 {[%clk 0:00:05]} 88. Kc1 {[%clk 0:00:13]}  Re1+ {[%clk 0:00:06]} 89. Kd2 {[%clk 0:00:13]}  Re2+ {[%clk 0:00:06]} 90. Kd1 {[%clk 0:00:14]}  Re8 {[%clk 0:00:06]} 91. Rd2+ {[%clk 0:00:14]}  Kf1 {[%clk 0:00:07]} 92. Rh4 {[%clk 0:00:13]}  g2 {[%clk 0:00:06]} 93. Kc2 {[%clk 0:00:13]}  g1=Q {[%clk 0:00:06]} 94. Rd1+ {[%clk 0:00:13]}  Kf2 {[%clk 0:00:06]} 95. Rd2+ {[%clk 0:00:13]}  Re2 {[%clk 0:00:06]} 96. Rd4 {[%clk 0:00:14]}  Rxd2+ {[%clk 0:00:06]} 97. Rxd2+ {[%clk 0:00:15]}  Kg3 {[%clk 0:00:06]} 98. Rd1 {[%clk 0:00:15]}  Qxd1+ {[%clk 0:00:06]} 99. Kxd1 {[%clk 0:00:00]}  Rf2 {[%clk 0:00:07]} 0-1


[Site "https://www.chess.com"]